[Event "Titled Tuesday Blitz May 4 2021"]
[White "Cella, Glaucio Dalla Cortt"]
[Black "Dylag, Emilia"]
[WhiteFideId "2119455"]
[BlackFideId "21805172"]
[WhiteElo "2011"]
[BlackElo "1871"]
[Result "0-1"]
[Round "07"]
[TimeControl "180+1"]
[Date "2021.05.04"]
[WhiteClock "0:00:02"]
[BlackClock "0:01:28"]

1. e4 {[%clk 0:01:16]}  e5 {[%clk 0:02:59]} 2. Nf3 {[%clk 0:01:04]}  Nc6 {[%clk 0:02:59]} 3. d4 {[%clk 0:01:01]}  exd4 {[%clk 0:02:58]} 4. Bc4 {[%clk 0:00:59]}  Nf6 {[%clk 0:02:55]} 5. e5 {[%clk 0:00:59]}  d5 {[%clk 0:02:54]} 6. Bb5 {[%clk 0:00:59]}  Ne4 {[%clk 0:02:54]} 7. Nxd4 {[%clk 0:01:00]}  Bd7 {[%clk 0:02:52]} 8. Bxc6 {[%clk 0:00:59]}  bxc6 {[%clk 0:02:53]} 9. O-O {[%clk 0:01:00]}  Be7 {[%clk 0:02:51]} 10. f3 {[%clk 0:01:00]}  Nc5 {[%clk 0:02:48]} 11. f4 {[%clk 0:00:57]}  Ne4 {[%clk 0:02:22]} 12. Nd2 {[%clk 0:00:57]}  c5 {[%clk 0:02:19]} 13. Nxe4 {[%clk 0:00:56]}  dxe4 {[%clk 0:02:02]} 14. Ne2 {[%clk 0:00:38]}  Bb5 {[%clk 0:01:59]} 15. Qe1 {[%clk 0:00:12]}  O-O {[%clk 0:01:53]} 16. Be3 {[%clk 0:00:11]}  f6 {[%clk 0:01:49]} 17. e6 {[%clk 0:00:10]}  f5 {[%clk 0:01:49]} 18. Rf2 {[%clk 0:00:06]}  Qd6 {[%clk 0:01:45]} 19. Nc3 {[%clk 0:00:06]}  Ba6 {[%clk 0:01:42]} 20. g4 {[%clk 0:00:03]}  Qxe6 {[%clk 0:01:37]} 21. gxf5 {[%clk 0:00:03]}  Qxf5 {[%clk 0:01:36]} 22. Rg2 {[%clk 0:00:04]}  Bf6 {[%clk 0:01:31]} 23. Bxc5 {[%clk 0:00:02]}  Qxc5+ {[%clk 0:01:30]} 24. Qf2 {[%clk 0:00:02]}  Bd4 {[%clk 0:01:28]} 0-1


[Site "https://www.chess.com"]

[Event "Titled Tuesday Blitz May 4 2021"]
[White "Chernomordik, Pavel"]
[Black "Suasnabar, Jesus"]
[WhiteFideId "2804530"]
[BlackFideId "3800776"]
[WhiteElo "2299"]
[BlackElo "2002"]
[Result "1-0"]
[Round "07"]
[TimeControl "180+1"]
[Date "2021.05.04"]
[WhiteClock "0:00:38"]
[BlackClock "0:00:02"]

1. e4 {[%clk 0:03:00]}  c5 {[%clk 0:02:59]} 2. Nc3 {[%clk 0:02:59]}  a6 {[%clk 0:02:58]} 3. g3 {[%clk 0:02:59]}  b5 {[%clk 0:02:58]} 4. Bg2 {[%clk 0:02:58]}  Bb7 {[%clk 0:02:58]} 5. Qe2 {[%clk 0:02:57]}  e6 {[%clk 0:02:55]} 6. f4 {[%clk 0:02:57]}  d6 {[%clk 0:02:51]} 7. d3 {[%clk 0:02:54]}  Qc7 {[%clk 0:02:45]} 8. Nf3 {[%clk 0:02:53]}  Nf6 {[%clk 0:02:43]} 9. O-O {[%clk 0:02:52]}  Be7 {[%clk 0:02:43]} 10. h3 {[%clk 0:02:45]}  O-O {[%clk 0:02:42]} 11. g4 {[%clk 0:02:45]}  Nc6 {[%clk 0:02:41]} 12. Be3 {[%clk 0:02:43]}  Rac8 {[%clk 0:02:29]} 13. Qf2 {[%clk 0:02:37]}  Rfe8 {[%clk 0:02:18]} 14. Ne2 {[%clk 0:02:35]}  Bf8 {[%clk 0:02:13]} 15. Ng3 {[%clk 0:02:34]}  g6 {[%clk 0:01:44]} 16. g5 {[%clk 0:02:31]}  Nd7 {[%clk 0:01:42]} 17. h4 {[%clk 0:02:30]}  Bg7 {[%clk 0:01:38]} 18. Rab1 {[%clk 0:02:23]}  Nd4 {[%clk 0:01:29]} 19. c3 {[%clk 0:02:08]}  Nxf3+ {[%clk 0:01:24]} 20. Bxf3 {[%clk 0:02:08]}  d5 {[%clk 0:01:16]} 21. h5 {[%clk 0:01:51]}  dxe4 {[%clk 0:01:11]} 22. dxe4 {[%clk 0:01:50]}  Nb6 {[%clk 0:00:52]} 23. Rbe1 {[%clk 0:01:32]}  Nc4 {[%clk 0:00:50]} 24. Bc1 {[%clk 0:01:32]}  b4 {[%clk 0:00:49]} 25. cxb4 {[%clk 0:01:19]}  Bd4 {[%clk 0:00:47]} 26. Be3 {[%clk 0:01:16]}  Nxe3 {[%clk 0:00:41]} 27. Rxe3 {[%clk 0:01:15]}  cxb4 {[%clk 0:00:37]} 28. Rfe1 {[%clk 0:01:13]}  Qc2 {[%clk 0:00:28]} 29. R1e2 {[%clk 0:01:08]}  Qc1+ {[%clk 0:00:20]} 30. Kh2 {[%clk 0:01:03]}  Bxe3 {[%clk 0:00:19]} 31. Rxe3 {[%clk 0:01:02]}  Rc2 {[%clk 0:00:17]} 32. Re2 {[%clk 0:00:55]}  Rec8 {[%clk 0:00:11]} 33. hxg6 {[%clk 0:00:53]}  hxg6 {[%clk 0:00:10]} 34. Qb6 {[%clk 0:00:45]}  Rxe2+ {[%clk 0:00:09]} 35. Nxe2 {[%clk 0:00:45]}  Ba8 {[%clk 0:00:02]} 36. Nxc1 {[%clk 0:00:43]}  Rxc1 {[%clk 0:00:01]} 37. Qd8+ {[%clk 0:00:41]}  Kg7 {[%clk 0:00:01]} 38. Qxa8 {[%clk 0:00:40]}  b3 {[%clk 0:00:01]} 39. axb3 {[%clk 0:00:39]}  a5 {[%clk 0:00:02]} 40. Qxa5 {[%clk 0:00:38]} 1-0


[Site "https://www.chess.com"]

[Event "Titled Tuesday Blitz May 4 2021"]
[White "Chyzy, Jakub"]
[Black "Steil-Antoni, Fiona"]
[WhiteFideId "21806209"]
[BlackFideId "4001249"]
[WhiteElo "2013"]
[BlackElo "2059"]
[Result "1-0"]
[Round "07"]
[TimeControl "180+1"]
[Date "2021.05.04"]
[WhiteClock "0:00:12"]
[BlackClock "0:00:02"]

1. b3 {[%clk 0:03:00]}  d5 {[%clk 0:02:51]} 2. Bb2 {[%clk 0:03:00]}  Bg4 {[%clk 0:02:49]} 3. h3 {[%clk 0:02:51]}  Bh5 {[%clk 0:02:49]} 4. g4 {[%clk 0:02:45]}  Bg6 {[%clk 0:02:44]} 5. Bg2 {[%clk 0:02:45]}  c6 {[%clk 0:02:41]} 6. e3 {[%clk 0:02:44]}  Nd7 {[%clk 0:02:40]} 7. Ne2 {[%clk 0:02:40]}  e5 {[%clk 0:02:36]} 8. d4 {[%clk 0:02:36]}  f6 {[%clk 0:02:26]} 9. dxe5 {[%clk 0:02:26]}  fxe5 {[%clk 0:02:24]} 10. f4 {[%clk 0:02:22]}  Bd6 {[%clk 0:02:18]} 11. f5 {[%clk 0:02:20]}  Bf7 {[%clk 0:02:18]} 12. O-O {[%clk 0:01:55]}  h5 {[%clk 0:02:09]} 13. Ng3 {[%clk 0:01:37]}  hxg4 {[%clk 0:02:04]} 14. Qxg4 {[%clk 0:01:37]}  Ngf6 {[%clk 0:01:41]} 15. Qe2 {[%clk 0:01:29]}  Qb6 {[%clk 0:01:15]} 16. Nc3 {[%clk 0:01:18]}  O-O-O {[%clk 0:01:12]} 17. Na4 {[%clk 0:01:17]}  Qb4 {[%clk 0:01:03]} 18. e4 {[%clk 0:01:11]}  Nxe4 {[%clk 0:00:43]} 19. Nxe4 {[%clk 0:01:10]}  dxe4 {[%clk 0:00:38]} 20. a3 {[%clk 0:01:02]}  Qb5 {[%clk 0:00:27]} 21. Qxb5 {[%clk 0:01:01]}  cxb5 {[%clk 0:00:28]} 22. Nc3 {[%clk 0:01:01]}  Bc5+ {[%clk 0:00:23]} 23. Kh1 {[%clk 0:00:58]}  Nf6 {[%clk 0:00:23]} 24. Nxb5 {[%clk 0:00:41]}  Rd2 {[%clk 0:00:20]} 25. Bxe5 {[%clk 0:00:34]}  a6 {[%clk 0:00:15]} 26. b4 {[%clk 0:00:32]}  Be7 {[%clk 0:00:08]} 27. Na7+ {[%clk 0:00:24]}  Kd7 {[%clk 0:00:07]} 28. Rad1 {[%clk 0:00:24]}  Rxd1 {[%clk 0:00:06]} 29. Rxd1+ {[%clk 0:00:24]}  Ke8 {[%clk 0:00:06]} 30. Nc8 {[%clk 0:00:23]}  Bd8 {[%clk 0:00:04]} 31. Nd6+ {[%clk 0:00:22]}  Ke7 {[%clk 0:00:04]} 32. Nxb7 {[%clk 0:00:20]}  Bb6 {[%clk 0:00:02]} 33. Bd6+ {[%clk 0:00:20]}  Ke8 {[%clk 0:00:02]} 34. Re1 {[%clk 0:00:14]}  Ng4 {[%clk 0:00:02]} 35. Rxe4+ {[%clk 0:00:12]}  Kd7 {[%clk 0:00:02]} 36. Rxg4 {[%clk 0:00:12]} 1-0


[Site "https://www.chess.com"]

[Event "Titled Tuesday Blitz May 4 2021"]
[White "Csonka, Balazs"]
[Black "Sieciechowicz, Marcin"]
[WhiteFideId "742910"]
[BlackFideId "1130170"]
[WhiteElo "2404"]
[BlackElo "2288"]
[Result "1-0"]
[Round "07"]
[TimeControl "180+1"]
[Date "2021.05.04"]
[WhiteClock "0:00:06"]
[BlackClock "0:00:08"]

1. d4 {[%clk 0:03:00]}  Nf6 {[%clk 0:02:58]} 2. Bf4 {[%clk 0:03:00]}  g6 {[%clk 0:02:58]} 3. Nc3 {[%clk 0:02:59]}  d5 {[%clk 0:02:56]} 4. e3 {[%clk 0:03:00]}  Bg7 {[%clk 0:02:57]} 5. h4 {[%clk 0:03:00]}  h5 {[%clk 0:02:53]} 6. Nf3 {[%clk 0:02:56]}  O-O {[%clk 0:02:53]} 7. Ne5 {[%clk 0:02:51]}  b6 {[%clk 0:02:48]} 8. f3 {[%clk 0:02:47]}  c5 {[%clk 0:02:48]} 9. g4 {[%clk 0:02:34]}  hxg4 {[%clk 0:02:47]} 10. fxg4 {[%clk 0:02:34]}  Nbd7 {[%clk 0:02:24]} 11. Nc6 {[%clk 0:02:04]}  Qe8 {[%clk 0:02:23]} 12. Nb5 {[%clk 0:02:03]}  Nb8 {[%clk 0:02:01]} 13. Nxb8 {[%clk 0:01:57]}  Bxg4 {[%clk 0:02:01]} 14. Be2 {[%clk 0:01:48]}  Bxe2 {[%clk 0:02:00]} 15. Qxe2 {[%clk 0:01:49]}  Rxb8 {[%clk 0:01:59]} 16. h5 {[%clk 0:01:27]}  Nxh5 {[%clk 0:01:30]} 17. Rxh5 {[%clk 0:01:26]}  gxh5 {[%clk 0:01:28]} 18. O-O-O {[%clk 0:01:27]}  f5 {[%clk 0:01:15]} 19. Rg1 {[%clk 0:01:10]}  Rf6 {[%clk 0:01:13]} 20. Qg2 {[%clk 0:00:58]}  Rf7 {[%clk 0:00:37]} 21. Be5 {[%clk 0:00:50]}  Qf8 {[%clk 0:00:25]} 22. Nc7 {[%clk 0:00:50]}  Rf6 {[%clk 0:00:25]} 23. Bxf6 {[%clk 0:00:40]}  Qxf6 {[%clk 0:00:18]} 24. Nxd5 {[%clk 0:00:17]}  Qf7 {[%clk 0:00:18]} 25. Nf4 {[%clk 0:00:17]}  Kh7 {[%clk 0:00:17]} 26. Rh1 {[%clk 0:00:15]}  Bh6 {[%clk 0:00:16]} 27. Rxh5 {[%clk 0:00:12]}  Rg8 {[%clk 0:00:16]} 28. Qh3 {[%clk 0:00:09]}  Qf6 {[%clk 0:00:14]} 29. Rxf5 {[%clk 0:00:07]}  Rg1+ {[%clk 0:00:13]} 30. Kd2 {[%clk 0:00:07]}  Qg7 {[%clk 0:00:13]} 31. c3 {[%clk 0:00:05]}  cxd4 {[%clk 0:00:13]} 32. cxd4 {[%clk 0:00:05]}  Rg3 {[%clk 0:00:11]} 33. Qh5 {[%clk 0:00:05]}  Rg5 {[%clk 0:00:11]} 34. Rxg5 {[%clk 0:00:05]}  Qxg5 {[%clk 0:00:10]} 35. Qxg5 {[%clk 0:00:05]}  Bxg5 {[%clk 0:00:11]} 36. Kd3 {[%clk 0:00:05]}  Kg7 {[%clk 0:00:10]} 37. Ne6+ {[%clk 0:00:05]}  Kf6 {[%clk 0:00:10]} 38. Nxg5 {[%clk 0:00:06]}  Kxg5 {[%clk 0:00:11]} 39. Ke4 {[%clk 0:00:06]}  Kf6 {[%clk 0:00:10]} 40. Kd5 {[%clk 0:00:06]}  Kf5 {[%clk 0:00:08]} 41. b4 {[%clk 0:00:06]}  Kg4 {[%clk 0:00:08]} 42. Ke6 {[%clk 0:00:06]} 1-0


[Site "https://www.chess.com"]

[Event "Titled Tuesday Blitz May 4 2021"]
[White "Daniel, Damian"]
[Black "Schut, Han"]
[WhiteFideId "1183621"]
[BlackFideId "1005561"]
[WhiteElo "2055"]
[BlackElo "2057"]
[Result "1-0"]
[Round "07"]
[TimeControl "180+1"]
[Date "2021.05.04"]
[WhiteClock "0:00:09"]
[BlackClock "0:00:01"]

1. d4 {[%clk 0:02:59]}  Nf6 {[%clk 0:02:58]} 2. c4 {[%clk 0:02:59]}  g6 {[%clk 0:02:59]} 3. Nc3 {[%clk 0:02:58]}  d5 {[%clk 0:02:58]} 4. cxd5 {[%clk 0:02:58]}  Nxd5 {[%clk 0:02:58]} 5. e4 {[%clk 0:02:58]}  Nxc3 {[%clk 0:02:57]} 6. bxc3 {[%clk 0:02:59]}  Bg7 {[%clk 0:02:58]} 7. Nf3 {[%clk 0:02:59]}  c5 {[%clk 0:02:59]} 8. Bb5+ {[%clk 0:02:59]}  Nc6 {[%clk 0:02:56]} 9. Rb1 {[%clk 0:02:44]}  a6 {[%clk 0:02:20]} 10. Bxc6+ {[%clk 0:02:22]}  bxc6 {[%clk 0:02:21]} 11. h3 {[%clk 0:02:13]}  cxd4 {[%clk 0:02:10]} 12. cxd4 {[%clk 0:02:10]}  Qa5+ {[%clk 0:02:09]} 13. Qd2 {[%clk 0:02:02]}  Qxd2+ {[%clk 0:02:01]} 14. Bxd2 {[%clk 0:02:02]}  Be6 {[%clk 0:01:58]} 15. a3 {[%clk 0:01:43]}  Bc4 {[%clk 0:01:53]} 16. Rb7 {[%clk 0:01:29]}  e6 {[%clk 0:01:01]} 17. Bb4 {[%clk 0:01:23]}  O-O-O {[%clk 0:00:47]} 18. Rxf7 {[%clk 0:01:17]}  Bxd4 {[%clk 0:00:47]} 19. Nxd4 {[%clk 0:01:06]}  Rxd4 {[%clk 0:00:48]} 20. f3 {[%clk 0:01:05]}  Rhd8 {[%clk 0:00:43]} 21. Kf2 {[%clk 0:01:05]}  e5 {[%clk 0:00:33]} 22. Rxh7 {[%clk 0:01:02]}  Rd3 {[%clk 0:00:25]} 23. Rc1 {[%clk 0:00:58]}  Bb5 {[%clk 0:00:25]} 24. Rg7 {[%clk 0:00:53]}  R8d7 {[%clk 0:00:15]} 25. Rxg6 {[%clk 0:00:51]}  Kb7 {[%clk 0:00:15]} 26. h4 {[%clk 0:00:45]}  a5 {[%clk 0:00:15]} 27. Bxa5 {[%clk 0:00:28]}  Rxa3 {[%clk 0:00:15]} 28. Bc3 {[%clk 0:00:28]}  Rd3 {[%clk 0:00:13]} 29. Bxe5 {[%clk 0:00:26]}  Ra2+ {[%clk 0:00:10]} 30. Kg3 {[%clk 0:00:26]}  Rdd2 {[%clk 0:00:10]} 31. Rg7+ {[%clk 0:00:22]}  Kb6 {[%clk 0:00:10]} 32. Rg1 {[%clk 0:00:14]}  Bf1 {[%clk 0:00:07]} 33. Kh2 {[%clk 0:00:14]}  Bc4 {[%clk 0:00:05]} 34. Kg3 {[%clk 0:00:15]}  Kb5 {[%clk 0:00:04]} 35. h5 {[%clk 0:00:13]}  Rd8 {[%clk 0:00:01]} 36. h6 {[%clk 0:00:12]}  Bd3 {[%clk 0:00:02]} 37. h7 {[%clk 0:00:11]}  Raa8 {[%clk 0:00:02]} 38. h8=Q {[%clk 0:00:10]}  Rxh8 {[%clk 0:00:01]} 39. Rb7+ {[%clk 0:00:09]}  Ka6 {[%clk 0:00:02]} 40. Rb3 {[%clk 0:00:09]}  Bc4 {[%clk 0:00:01]} 41. Ra1# {[%clk 0:00:09]} 1-0


[Site "https://www.chess.com"]

[Event "Titled Tuesday Blitz May 4 2021"]
[White "Demin, Vladimir"]
[Black "Bartel, Michal"]
[WhiteFideId "4167457"]
[BlackFideId "1119257"]
[WhiteElo "2486"]
[BlackElo "2271"]
[Result "1-0"]
[Round "07"]
[TimeControl "180+1"]
[Date "2021.05.04"]
[WhiteClock "0:00:13"]
[BlackClock "0:00:10"]

1. e4 {[%clk 0:03:00]}  e5 {[%clk 0:03:00]} 2. Nf3 {[%clk 0:03:00]}  Nc6 {[%clk 0:03:00]} 3. Bb5 {[%clk 0:03:00]}  g6 {[%clk 0:03:01]} 4. d4 {[%clk 0:02:55]}  exd4 {[%clk 0:02:58]} 5. c3 {[%clk 0:02:54]}  dxc3 {[%clk 0:02:57]} 6. Nxc3 {[%clk 0:02:55]}  Bg7 {[%clk 0:02:55]} 7. Bg5 {[%clk 0:02:54]}  Nce7 {[%clk 0:02:55]} 8. e5 {[%clk 0:02:30]}  h6 {[%clk 0:02:51]} 9. Bd2 {[%clk 0:02:24]}  Nc6 {[%clk 0:02:50]} 10. Nd5 {[%clk 0:02:20]}  Nge7 {[%clk 0:02:43]} 11. Nf6+ {[%clk 0:02:19]}  Kf8 {[%clk 0:02:44]} 12. Qb3 {[%clk 0:02:11]}  d6 {[%clk 0:02:38]} 13. O-O-O {[%clk 0:01:54]}  Be6 {[%clk 0:02:24]} 14. Bc4 {[%clk 0:01:52]}  d5 {[%clk 0:02:18]} 15. Bc3 {[%clk 0:01:49]}  Rb8 {[%clk 0:01:56]} 16. Nxd5 {[%clk 0:01:30]}  Nxd5 {[%clk 0:01:40]} 17. Bxd5 {[%clk 0:01:30]}  Bxd5 {[%clk 0:01:40]} 18. Rxd5 {[%clk 0:01:28]}  Qe7 {[%clk 0:01:38]} 19. Rhd1 {[%clk 0:01:28]}  Qe6 {[%clk 0:01:34]} 20. Qa3+ {[%clk 0:01:15]}  Kg8 {[%clk 0:01:34]} 21. Rd7 {[%clk 0:01:11]}  Rc8 {[%clk 0:01:23]} 22. Qb3 {[%clk 0:00:45]}  Qxb3 {[%clk 0:01:13]} 23. axb3 {[%clk 0:00:46]}  Rh7 {[%clk 0:00:58]} 24. Kc2 {[%clk 0:00:39]}  Bf8 {[%clk 0:00:57]} 25. Kd3 {[%clk 0:00:36]}  g5 {[%clk 0:00:51]} 26. Ke4 {[%clk 0:00:34]}  Re8 {[%clk 0:00:44]} 27. Kf5 {[%clk 0:00:33]}  Re7 {[%clk 0:00:41]} 28. h4 {[%clk 0:00:23]}  gxh4 {[%clk 0:00:37]} 29. Nxh4 {[%clk 0:00:22]}  Rg7 {[%clk 0:00:36]} 30. g4 {[%clk 0:00:20]}  Rg5+ {[%clk 0:00:33]} 31. Kf4 {[%clk 0:00:21]}  Nxe5 {[%clk 0:00:33]} 32. Rxe7 {[%clk 0:00:20]}  Bxe7 {[%clk 0:00:19]} 33. Bxe5 {[%clk 0:00:20]}  f6 {[%clk 0:00:15]} 34. Bxc7 {[%clk 0:00:15]}  Rb5 {[%clk 0:00:15]} 35. Nf5 {[%clk 0:00:15]}  Bf8 {[%clk 0:00:15]} 36. Rd8 {[%clk 0:00:14]}  Kf7 {[%clk 0:00:15]} 37. Bd6 {[%clk 0:00:14]}  Bg7 {[%clk 0:00:10]} 38. Rd7+ {[%clk 0:00:13]}  Ke6 {[%clk 0:00:11]} 39. Re7+ {[%clk 0:00:13]}  Kd5 {[%clk 0:00:11]} 40. Rxg7 {[%clk 0:00:14]}  Rxb3 {[%clk 0:00:11]} 41. Bf8 {[%clk 0:00:13]}  Rxb2 {[%clk 0:00:11]} 42. Ne3+ {[%clk 0:00:13]}  Kc6 {[%clk 0:00:10]} 43. f3 {[%clk 0:00:14]}  a5 {[%clk 0:00:10]} 44. Rf7 {[%clk 0:00:14]}  b5 {[%clk 0:00:10]} 45. Rxf6+ {[%clk 0:00:14]}  Kb7 {[%clk 0:00:11]} 46. Rf7+ {[%clk 0:00:13]}  Kb6 {[%clk 0:00:11]} 47. Bg7 {[%clk 0:00:14]}  Rb1 {[%clk 0:00:11]} 48. Bd4+ {[%clk 0:00:13]}  Kc6 {[%clk 0:00:11]} 49. Rf6+ {[%clk 0:00:13]}  Kc7 {[%clk 0:00:10]} 50. Nd5+ {[%clk 0:00:13]}  Kd7 {[%clk 0:00:10]} 51. Ke5 {[%clk 0:00:14]}  b4 {[%clk 0:00:10]} 52. Rf7+ {[%clk 0:00:13]}  Kc6 {[%clk 0:00:11]} 53. Rf6+ {[%clk 0:00:13]}  Kb5 {[%clk 0:00:11]} 54. Ne3 {[%clk 0:00:13]}  b3 {[%clk 0:00:10]} 55. Kd5 {[%clk 0:00:13]}  a4 {[%clk 0:00:10]} 56. Rb6+ {[%clk 0:00:13]}  Ka5 {[%clk 0:00:10]} 57. Nc4# {[%clk 0:00:13]} 1-0


[Site "https://www.chess.com"]

[Event "Titled Tuesday Blitz May 4 2021"]
[White "Diaz Camallonga, Carles"]
[Black "Gahan, M G"]
[WhiteFideId "22235256"]
[BlackFideId "5027373"]
[WhiteElo "2438"]
[BlackElo "2264"]
[Result "1-0"]
[Round "07"]
[TimeControl "180+1"]
[Date "2021.05.04"]
[WhiteClock "0:01:29"]
[BlackClock "0:01:34"]

1. e4 {[%clk 0:03:00]}  c5 {[%clk 0:02:59]} 2. Nf3 {[%clk 0:03:00]}  d6 {[%clk 0:02:59]} 3. Bb5+ {[%clk 0:03:00]}  Bd7 {[%clk 0:02:59]} 4. Bxd7+ {[%clk 0:02:59]}  Qxd7 {[%clk 0:02:59]} 5. c4 {[%clk 0:02:59]}  Nf6 {[%clk 0:03:00]} 6. Nc3 {[%clk 0:02:59]}  e6 {[%clk 0:03:00]} 7. O-O {[%clk 0:02:58]}  Be7 {[%clk 0:03:00]} 8. d4 {[%clk 0:02:58]}  cxd4 {[%clk 0:03:00]} 9. Nxd4 {[%clk 0:02:59]}  Nc6 {[%clk 0:03:01]} 10. Be3 {[%clk 0:02:59]}  O-O {[%clk 0:03:00]} 11. Qe2 {[%clk 0:02:59]}  Rfc8 {[%clk 0:03:00]} 12. Rac1 {[%clk 0:02:57]}  a6 {[%clk 0:02:53]} 13. Rfd1 {[%clk 0:02:44]}  Rab8 {[%clk 0:02:46]} 14. b3 {[%clk 0:02:38]}  Nxd4 {[%clk 0:02:44]} 15. Bxd4 {[%clk 0:02:38]}  b5 {[%clk 0:02:43]} 16. e5 {[%clk 0:02:20]}  dxe5 {[%clk 0:02:13]} 17. Bxe5 {[%clk 0:02:18]}  Qb7 {[%clk 0:02:13]} 18. Bxb8 {[%clk 0:02:18]}  Rxb8 {[%clk 0:02:14]} 19. cxb5 {[%clk 0:02:16]}  axb5 {[%clk 0:02:15]} 20. Qxb5 {[%clk 0:01:48]}  Qxb5 {[%clk 0:02:09]} 21. Nxb5 {[%clk 0:01:48]}  Nd5 {[%clk 0:01:51]} 22. Nc3 {[%clk 0:01:42]}  Nb4 {[%clk 0:01:38]} 23. a3 {[%clk 0:01:36]}  Na6 {[%clk 0:01:35]} 24. b4 {[%clk 0:01:36]}  Bf6 {[%clk 0:01:35]} 25. Ne4 {[%clk 0:01:30]}  Bb2 {[%clk 0:01:34]} 26. Rc6 {[%clk 0:01:29]} 1-0


[Site "https://www.chess.com"]

[Event "Titled Tuesday Blitz May 4 2021"]
[White "DieHardCuban"]
[Black "Dogan, Mire Deniz"]
[BlackFideId "6317456"]
[WhiteElo "2390"]
[BlackElo "1850"]
[Result "0-1"]
[Round "07"]
[TimeControl "180+1"]
[Date "2021.05.04"]
[WhiteClock "0:00:09"]
[BlackClock "0:00:15"]

1. d4 {[%clk 0:03:00]}  d5 {[%clk 0:02:58]} 2. c4 {[%clk 0:03:01]}  e6 {[%clk 0:02:58]} 3. Nc3 {[%clk 0:03:00]}  Nf6 {[%clk 0:02:58]} 4. cxd5 {[%clk 0:03:01]}  exd5 {[%clk 0:02:58]} 5. Bg5 {[%clk 0:03:00]}  Be7 {[%clk 0:02:59]} 6. e3 {[%clk 0:03:01]}  O-O {[%clk 0:02:59]} 7. Bd3 {[%clk 0:03:01]}  Nbd7 {[%clk 0:02:44]} 8. Nge2 {[%clk 0:02:47]}  Re8 {[%clk 0:02:43]} 9. Qc2 {[%clk 0:02:39]}  Nf8 {[%clk 0:02:43]} 10. O-O-O {[%clk 0:02:29]}  a5 {[%clk 0:02:29]} 11. Kb1 {[%clk 0:02:18]}  a4 {[%clk 0:02:25]} 12. h3 {[%clk 0:01:56]}  Be6 {[%clk 0:02:18]} 13. g4 {[%clk 0:01:55]}  Qd7 {[%clk 0:02:15]} 14. Nf4 {[%clk 0:01:43]}  Reb8 {[%clk 0:02:13]} 15. Nxe6 {[%clk 0:01:36]}  fxe6 {[%clk 0:02:08]} 16. Bb5 {[%clk 0:01:00]}  Qd6 {[%clk 0:01:43]} 17. Bxa4 {[%clk 0:00:57]}  Ne4 {[%clk 0:00:59]} 18. Nxe4 {[%clk 0:00:55]}  dxe4 {[%clk 0:00:58]} 19. Bxe7 {[%clk 0:00:53]}  Qxe7 {[%clk 0:00:57]} 20. Bb3 {[%clk 0:00:54]}  Qf6 {[%clk 0:00:45]} 21. Qxe4 {[%clk 0:00:50]}  Qxf2 {[%clk 0:00:44]} 22. Rhf1 {[%clk 0:00:44]}  Qh4 {[%clk 0:00:43]} 23. Rf3 {[%clk 0:00:31]}  Re8 {[%clk 0:00:29]} 24. Rdf1 {[%clk 0:00:28]}  c6 {[%clk 0:00:28]} 25. Qe5 {[%clk 0:00:17]}  Qh6 {[%clk 0:00:26]} 26. g5 {[%clk 0:00:16]}  Qg6+ {[%clk 0:00:25]} 27. Bc2 {[%clk 0:00:16]}  Qh5 {[%clk 0:00:22]} 28. Qd6 {[%clk 0:00:10]}  Rad8 {[%clk 0:00:18]} 29. Qc7 {[%clk 0:00:10]}  Rd7 {[%clk 0:00:18]} 30. Rxf8+ {[%clk 0:00:09]}  Rxf8 {[%clk 0:00:18]} 31. Rxf8+ {[%clk 0:00:10]}  Kxf8 {[%clk 0:00:19]} 32. Qxd7 {[%clk 0:00:11]}  Qxh3 {[%clk 0:00:19]} 33. Qd8+ {[%clk 0:00:10]}  Kf7 {[%clk 0:00:19]} 34. Qc7+ {[%clk 0:00:09]}  Ke8 {[%clk 0:00:17]} 35. Qf4 {[%clk 0:00:09]}  Qh1+ {[%clk 0:00:15]} 0-1


[Site "https://www.chess.com"]